{"text_format":"3","workbook":"xlsx","n_sheets":1,"sheets":["Troškovi renoviranja kupatila"],"not_rendered":{"defined_names":3},"read":"whole","date_system":"1900"}

{"sheet":"Troškovi renoviranja kupatila","index":0,"n_rows":24,"n_cols":10,"rows_kept":24,"merged":[[1,1,2,3],[2,4,2,6],[2,7,2,9],[22,1,22,3],[22,4,22,6],[22,7,22,9],[23,1,23,3],[23,4,23,6],[23,7,23,9]]}
[null,"Radni list sa troškovima renoviranja kupatila"]
[null,"NAPOMENA: Kolone sa razlikom u tabeli prikazaće da je stvarni iznos premašio procenjene iznose.  Crveni brojevi prikazuju premašene cifre (negativne), a crni prikazuju nedostignute cifre (pozitivne). "]
[{"$nulls":4},"Cena po stavkama (RSD)",null,null,"Ukupna cena (RSD)"]
[null,"Oblast","Stavke","Količina","Procenjeno","Stvarno","Razlika","Procenjeno ","Stvarno ","Razlika "]
[null,"Kada/tuš","Kada, livena, 5', standardna",1,{"v":250,"d":"250.00 RSD"},{"$f":"RANDBETWEEN(E5+2,E5+20)","v":{"v":260,"d":"260.00 RSD"}},{"$f":"IFERROR(Troškovi[[#This Row],[Procenjeno]]-Troškovi[[#This Row],[Stvarno]], \"\")","v":{"v":-10,"d":"-10.00 RSD"}},{"$f":"IFERROR(Troškovi[[#This Row],[Količina]]*Troškovi[[#This Row],[Procenjeno]], \"\")","v":{"v":250,"d":"250.00 RSD"}},{"$f":"IFERROR(Troškovi[[#This Row],[Količina]]*Troškovi[[#This Row],[Stvarno]], \"\")","v":{"v":260,"d":"260.00 RSD"}},{"$f":"IFERROR(Troškovi[[#This Row],[Procenjeno ]]-Troškovi[[#This Row],[Stvarno ]], \"\")","v":{"v":-10,"d":"-10.00 RSD"}}]
[null,"Kada/tuš","Vrata tuša, sa šarkama, standardna",1,{"v":200,"d":"200.00 RSD"},{"v":205,"d":"205.00 RSD"},{"$f":"IFERROR(Troškovi[[#This Row],[Procenjeno]]-Troškovi[[#This Row],[Stvarno]], \"\")","v":{"v":-5,"d":"-5.00 RSD"}},{"$f":"IFERROR(Troškovi[[#This Row],[Količina]]*Troškovi[[#This Row],[Procenjeno]], \"\")","v":{"v":200,"d":"200.00 RSD"}},{"$f":"IFERROR(Troškovi[[#This Row],[Količina]]*Troškovi[[#This Row],[Stvarno]], \"\")","v":{"v":205,"d":"205.00 RSD"}},{"$f":"IFERROR(Troškovi[[#This Row],[Procenjeno ]]-Troškovi[[#This Row],[Stvarno ]], \"\")","v":{"v":-5,"d":"-5.00 RSD"}}]
[null,"Kada/tuš","Glava tuša, standardna",1,{"v":50,"d":"50.00 RSD"},{"v":55,"d":"55.00 RSD"},{"$f":"IFERROR(Troškovi[[#This Row],[Procenjeno]]-Troškovi[[#This Row],[Stvarno]], \"\")","v":{"v":-5,"d":"-5.00 RSD"}},{"$f":"IFERROR(Troškovi[[#This Row],[Količina]]*Troškovi[[#This Row],[Procenjeno]], \"\")","v":{"v":50,"d":"50.00 RSD"}},{"$f":"IFERROR(Troškovi[[#This Row],[Količina]]*Troškovi[[#This Row],[Stvarno]], \"\")","v":{"v":55,"d":"55.00 RSD"}},{"$f":"IFERROR(Troškovi[[#This Row],[Procenjeno ]]-Troškovi[[#This Row],[Stvarno ]], \"\")","v":{"v":-5,"d":"-5.00 RSD"}}]
[null,"Kada/tuš","Zid oko kade, standardan",1,{"v":200,"d":"200.00 RSD"},{"v":212,"d":"212.00 RSD"},{"$f":"IFERROR(Troškovi[[#This Row],[Procenjeno]]-Troškovi[[#This Row],[Stvarno]], \"\")","v":{"v":-12,"d":"-12.00 RSD"}},{"$f":"IFERROR(Troškovi[[#This Row],[Količina]]*Troškovi[[#This Row],[Procenjeno]], \"\")","v":{"v":200,"d":"200.00 RSD"}},{"$f":"IFERROR(Troškovi[[#This Row],[Količina]]*Troškovi[[#This Row],[Stvarno]], \"\")","v":{"v":212,"d":"212.00 RSD"}},{"$f":"IFERROR(Troškovi[[#This Row],[Procenjeno ]]-Troškovi[[#This Row],[Stvarno ]], \"\")","v":{"v":-12,"d":"-12.00 RSD"}}]
[null,"Ormarići","Ormarić za lekove 24'', deluks",1,{"v":200,"d":"200.00 RSD"},{"v":219,"d":"219.00 RSD"},{"$f":"IFERROR(Troškovi[[#This Row],[Procenjeno]]-Troškovi[[#This Row],[Stvarno]], \"\")","v":{"v":-19,"d":"-19.00 RSD"}},{"$f":"IFERROR(Troškovi[[#This Row],[Količina]]*Troškovi[[#This Row],[Procenjeno]], \"\")","v":{"v":200,"d":"200.00 RSD"}},{"$f":"IFERROR(Troškovi[[#This Row],[Količina]]*Troškovi[[#This Row],[Stvarno]], \"\")","v":{"v":219,"d":"219.00 RSD"}},{"$f":"IFERROR(Troškovi[[#This Row],[Procenjeno ]]-Troškovi[[#This Row],[Stvarno ]], \"\")","v":{"v":-19,"d":"-19.00 RSD"}}]
[null,"Ormarići","Viseći deo sa ogledalom 30'', standardan",2,{"v":100,"d":"100.00 RSD"},{"v":106,"d":"106.00 RSD"},{"$f":"IFERROR(Troškovi[[#This Row],[Procenjeno]]-Troškovi[[#This Row],[Stvarno]], \"\")","v":{"v":-6,"d":"-6.00 RSD"}},{"$f":"IFERROR(Troškovi[[#This Row],[Količina]]*Troškovi[[#This Row],[Procenjeno]], \"\")","v":{"v":200,"d":"200.00 RSD"}},{"$f":"IFERROR(Troškovi[[#This Row],[Količina]]*Troškovi[[#This Row],[Stvarno]], \"\")","v":{"v":212,"d":"212.00 RSD"}},{"$f":"IFERROR(Troškovi[[#This Row],[Procenjeno ]]-Troškovi[[#This Row],[Stvarno ]], \"\")","v":{"v":-12,"d":"-12.00 RSD"}}]
[null,"Pultovi","Keramička pločica, deluks (količina u linearnim stopama)",5,{"v":22.5,"d":"22.50 RSD"},{"v":28,"d":"28.00 RSD"},{"$f":"IFERROR(Troškovi[[#This Row],[Procenjeno]]-Troškovi[[#This Row],[Stvarno]], \"\")","v":{"v":-5.5,"d":"-5.50 RSD"}},{"$f":"IFERROR(Troškovi[[#This Row],[Količina]]*Troškovi[[#This Row],[Procenjeno]], \"\")","v":{"v":112.5,"d":"112.50 RSD"}},{"$f":"IFERROR(Troškovi[[#This Row],[Količina]]*Troškovi[[#This Row],[Stvarno]], \"\")","v":{"v":140,"d":"140.00 RSD"}},{"$f":"IFERROR(Troškovi[[#This Row],[Procenjeno ]]-Troškovi[[#This Row],[Stvarno ]], \"\")","v":{"v":-27.5,"d":"-27.50 RSD"}}]
[null,"Slavine","Slavina, kada, standardno",1,{"v":90,"d":"90.00 RSD"},{"v":92,"d":"92.00 RSD"},{"$f":"IFERROR(Troškovi[[#This Row],[Procenjeno]]-Troškovi[[#This Row],[Stvarno]], \"\")","v":{"v":-2,"d":"-2.00 RSD"}},{"$f":"IFERROR(Troškovi[[#This Row],[Količina]]*Troškovi[[#This Row],[Procenjeno]], \"\")","v":{"v":90,"d":"90.00 RSD"}},{"$f":"IFERROR(Troškovi[[#This Row],[Količina]]*Troškovi[[#This Row],[Stvarno]], \"\")","v":{"v":92,"d":"92.00 RSD"}},{"$f":"IFERROR(Troškovi[[#This Row],[Procenjeno ]]-Troškovi[[#This Row],[Stvarno ]], \"\")","v":{"v":-2,"d":"-2.00 RSD"}}]
[null,"Slavine","Slavina, tuš, jedna ručka, standardno",1,{"v":115,"d":"115.00 RSD"},{"v":120,"d":"120.00 RSD"},{"$f":"IFERROR(Troškovi[[#This Row],[Procenjeno]]-Troškovi[[#This Row],[Stvarno]], \"\")","v":{"v":-5,"d":"-5.00 RSD"}},{"$f":"IFERROR(Troškovi[[#This Row],[Količina]]*Troškovi[[#This Row],[Procenjeno]], \"\")","v":{"v":115,"d":"115.00 RSD"}},{"$f":"IFERROR(Troškovi[[#This Row],[Količina]]*Troškovi[[#This Row],[Stvarno]], \"\")","v":{"v":120,"d":"120.00 RSD"}},{"$f":"IFERROR(Troškovi[[#This Row],[Procenjeno ]]-Troškovi[[#This Row],[Stvarno ]], \"\")","v":{"v":-5,"d":"-5.00 RSD"}}]
[null,"Slavine","Lavabo, standardan",1,{"v":95,"d":"95.00 RSD"},{"v":107,"d":"107.00 RSD"},{"$f":"IFERROR(Troškovi[[#This Row],[Procenjeno]]-Troškovi[[#This Row],[Stvarno]], \"\")","v":{"v":-12,"d":"-12.00 RSD"}},{"$f":"IFERROR(Troškovi[[#This Row],[Količina]]*Troškovi[[#This Row],[Procenjeno]], \"\")","v":{"v":95,"d":"95.00 RSD"}},{"$f":"IFERROR(Troškovi[[#This Row],[Količina]]*Troškovi[[#This Row],[Stvarno]], \"\")","v":{"v":107,"d":"107.00 RSD"}},{"$f":"IFERROR(Troškovi[[#This Row],[Procenjeno ]]-Troškovi[[#This Row],[Stvarno ]], \"\")","v":{"v":-12,"d":"-12.00 RSD"}}]
[null,"Podne obloge","Keramička pločica, standardna (količina u kvadratnim stopama).",35,{"v":12,"d":"12.00 RSD"},{"v":27,"d":"27.00 RSD"},{"$f":"IFERROR(Troškovi[[#This Row],[Procenjeno]]-Troškovi[[#This Row],[Stvarno]], \"\")","v":{"v":-15,"d":"-15.00 RSD"}},{"$f":"IFERROR(Troškovi[[#This Row],[Količina]]*Troškovi[[#This Row],[Procenjeno]], \"\")","v":{"v":420,"d":"420.00 RSD"}},{"$f":"IFERROR(Troškovi[[#This Row],[Količina]]*Troškovi[[#This Row],[Stvarno]], \"\")","v":{"v":945,"d":"945.00 RSD"}},{"$f":"IFERROR(Troškovi[[#This Row],[Procenjeno ]]-Troškovi[[#This Row],[Stvarno ]], \"\")","v":{"v":-525,"d":"-525.00 RSD"}}]
[null,"Hardver","Drška za tuš, standardna",2,{"v":15,"d":"15.00 RSD"},{"v":30,"d":"30.00 RSD"},{"$f":"IFERROR(Troškovi[[#This Row],[Procenjeno]]-Troškovi[[#This Row],[Stvarno]], \"\")","v":{"v":-15,"d":"-15.00 RSD"}},{"$f":"IFERROR(Troškovi[[#This Row],[Količina]]*Troškovi[[#This Row],[Procenjeno]], \"\")","v":{"v":30,"d":"30.00 RSD"}},{"$f":"IFERROR(Troškovi[[#This Row],[Količina]]*Troškovi[[#This Row],[Stvarno]], \"\")","v":{"v":60,"d":"60.00 RSD"}},{"$f":"IFERROR(Troškovi[[#This Row],[Procenjeno ]]-Troškovi[[#This Row],[Stvarno ]], \"\")","v":{"v":-30,"d":"-30.00 RSD"}}]
[null,"Hardver","Držač za toalet-papir",1,{"v":10,"d":"10.00 RSD"},{"v":18,"d":"18.00 RSD"},{"$f":"IFERROR(Troškovi[[#This Row],[Procenjeno]]-Troškovi[[#This Row],[Stvarno]], \"\")","v":{"v":-8,"d":"-8.00 RSD"}},{"$f":"IFERROR(Troškovi[[#This Row],[Količina]]*Troškovi[[#This Row],[Procenjeno]], \"\")","v":{"v":10,"d":"10.00 RSD"}},{"$f":"IFERROR(Troškovi[[#This Row],[Količina]]*Troškovi[[#This Row],[Stvarno]], \"\")","v":{"v":18,"d":"18.00 RSD"}},{"$f":"IFERROR(Troškovi[[#This Row],[Procenjeno ]]-Troškovi[[#This Row],[Stvarno ]], \"\")","v":{"v":-8,"d":"-8.00 RSD"}}]
[null,"Rasveta","Uvučena svetla, standardna",4,{"v":25,"d":"25.00 RSD"},{"v":31,"d":"31.00 RSD"},{"$f":"IFERROR(Troškovi[[#This Row],[Procenjeno]]-Troškovi[[#This Row],[Stvarno]], \"\")","v":{"v":-6,"d":"-6.00 RSD"}},{"$f":"IFERROR(Troškovi[[#This Row],[Količina]]*Troškovi[[#This Row],[Procenjeno]], \"\")","v":{"v":100,"d":"100.00 RSD"}},{"$f":"IFERROR(Troškovi[[#This Row],[Količina]]*Troškovi[[#This Row],[Stvarno]], \"\")","v":{"v":124,"d":"124.00 RSD"}},{"$f":"IFERROR(Troškovi[[#This Row],[Procenjeno ]]-Troškovi[[#This Row],[Stvarno ]], \"\")","v":{"v":-24,"d":"-24.00 RSD"}}]
[null,"Sudoperi","Toalet, standardan",2,{"v":60,"d":"60.00 RSD"},{"v":67,"d":"67.00 RSD"},{"$f":"IFERROR(Troškovi[[#This Row],[Procenjeno]]-Troškovi[[#This Row],[Stvarno]], \"\")","v":{"v":-7,"d":"-7.00 RSD"}},{"$f":"IFERROR(Troškovi[[#This Row],[Količina]]*Troškovi[[#This Row],[Procenjeno]], \"\")","v":{"v":120,"d":"120.00 RSD"}},{"$f":"IFERROR(Troškovi[[#This Row],[Količina]]*Troškovi[[#This Row],[Stvarno]], \"\")","v":{"v":134,"d":"134.00 RSD"}},{"$f":"IFERROR(Troškovi[[#This Row],[Procenjeno ]]-Troškovi[[#This Row],[Stvarno ]], \"\")","v":{"v":-14,"d":"-14.00 RSD"}}]
[null,"Drugo",null,1,{"v":20,"d":"20.00 RSD"},{"v":39,"d":"39.00 RSD"},{"$f":"IFERROR(Troškovi[[#This Row],[Procenjeno]]-Troškovi[[#This Row],[Stvarno]], \"\")","v":{"v":-19,"d":"-19.00 RSD"}},{"$f":"IFERROR(Troškovi[[#This Row],[Količina]]*Troškovi[[#This Row],[Procenjeno]], \"\")","v":{"v":20,"d":"20.00 RSD"}},{"$f":"IFERROR(Troškovi[[#This Row],[Količina]]*Troškovi[[#This Row],[Stvarno]], \"\")","v":{"v":39,"d":"39.00 RSD"}},{"$f":"IFERROR(Troškovi[[#This Row],[Procenjeno ]]-Troškovi[[#This Row],[Stvarno ]], \"\")","v":{"v":-19,"d":"-19.00 RSD"}}]
[null,"Međuvrednost",null,null,{"$f":"SUBTOTAL(109,Troškovi[Procenjeno])","v":{"v":1464.5,"d":"1,464.50 RSD"}},{"$f":"SUBTOTAL(109,Troškovi[Stvarno])","v":{"v":1616,"d":"1,616.00 RSD"}},{"$f":"SUBTOTAL(109,Troškovi[Razlika])","v":{"v":-151.5,"d":"-151.50 RSD"}},{"$f":"SUBTOTAL(109,Troškovi[[Procenjeno ]])","v":{"v":2212.5,"d":"2,212.50 RSD"}},{"$f":"SUBTOTAL(109,Troškovi[[Stvarno ]])","v":{"v":2942,"d":"2,942.00 RSD"}},{"$f":"SUBTOTAL(109,Troškovi[[Razlika ]])","v":{"v":-729.5,"d":"-729.50 RSD"}}]
[]
[null,"Neočekivani troškovi (dodajte procenjenih 30%)",null,null,{"$f":"IFERROR(Troškovi[[#Totals],[Procenjeno]]*0.3, \"\")","v":{"v":439.34999999999997,"d":"439.35 RSD"}},null,null,{"$f":"IFERROR(Troškovi[[#Totals],[Procenjeno ]]*0.3, \"\")","v":{"v":663.75,"d":"663.75 RSD"}}]
[null,"Ukupni troškovi",null,null,{"$f":"IFERROR(SUM(E21:E21), \"\")","v":{"v":1464.5,"d":"1,464.50 RSD"}},null,null,{"$f":"IFERROR(SUM(Troškovi[[#Totals],[Procenjeno ]],Višak), \"\")","v":{"v":2876.25,"d":"2,876.25 RSD"}}]